Workbook

Sheet Mulai
B1: TENTANG TEMPLAT INI
B2: Buat Rencana Keuangan Awal Bisnis menggunakan templat ini.
B3: Dapatkan ikhtisar rencana keuangan di lembar kerja Ikhtisar.
B4: Gunakan lembar kerja Templat Biaya dan Templat P&L Awal untuk memperhitungkan Biaya serta Laba & Rugi Awal.
B5: Lembar kerja Contoh Biaya dan Contoh P&L Awal berisi data sampel dalam tabel.
B6: Catatan:
B7: Instruksi tambahan telah disediakan di kolom A dalam semua lembar kerja. Teks ini sengaja disembunyikan. Untuk menghapus teks, pilih kolom A, lalu pilih HAPUS. Untuk memperlihatkan teks, pilih kolom A, lalu ubah warna font.
B8: Untuk mempelajari selengkapnya tentang tabel, tekan SHIFT, lalu F10 dalam tabel, pilih opsi TABEL, lalu pilih TEKS ALTERNATIF.

Sheet Gambaran umum
B1: RENCANA KEUANGAN AWAL BISNIS
B2: Membuat rencana keuangan adalah tempat semua perencanaan bisnis disatukan. Setelah mengidentifikasi produk, pasar target, dan pelanggan target, beserta harga, Anda siap untuk mulai membuat prakiraan biaya, penjualan, dan laba. Item berikut beserta asumsi Anda, akan membantu Anda memperkirakan prakiraan penjualan Anda. Sisi lain dari bisnis adalah pengeluaran yang Anda harapkan akan terjadi. Hal ini penting dilakukan secara berkelanjutan untuk melihat kapan Anda mendapatkan keuntungan. Hal ini juga penting ketika Anda memulai bisnis, untuk mengetahui pengeluaran apa yang perlu didanai sebelum penjualan pelanggan atau uang tunai yang mereka hasilkan diterima.
B3: Biaya Awal yang Diproyeksikan: Tabel di tab berikutnya, Templat Biaya Awal, menyediakan templat kosong dengan beberapa petunjuk untuk memulai. Tab berikutnya, Contoh Biaya Awal, memperlihatkan contoh item biaya rutin dan biaya satu kali yang mungkin Anda perlukan untuk membuka bisnis. Banyak bisnis dibayar secara kredit dari waktu ke waktu dan tidak memiliki uang tunai yang langsung masuk. Penting untuk memperkirakan kapan uang tunai akan mulai mengalir ke perusahaan dengan membuat asumsi tentang berapa bulan item berulang, selain pengeluaran satu kali, Anda harus mendanai dari tabungan atau investasi awal.
B4: Model Laba dan Rugi yang Diproyeksikan: Di tab, label Templat P&L, Anda akan menemukan templat kosong untuk melakukan Prakiraan Penjualan dan Model Laba dan Rugi. Tab berikutnya, Contoh P&L, memperlihatkan contoh proyeksi yang diperkirakan sebuah bisnis kecil untuk 12 bulan pertama operasinya. Bagian atas tabel di setiap model menunjukkan proyeksi penjualan dan laba kotor. Ini adalah tempat yang tepat untuk mulai membuat prakiraan penjualan Anda. Bagian berikutnya, di bawah, memerinci pengeluaran berulang yang Anda proyeksikan untuk bulan yang sama. Ini harus konsisten dengan perkiraan biaya awal yang Anda selesaikan di bagian sebelumnya. Di bagian bawah model ini, Anda akan mulai melihat kapan Anda akan mendapatkan keuntungan dan item pengeluaran apa yang paling berdampak pada profitabilitas Anda.
B5: Terus pantau asumsi yang Anda buat untuk memperkirakan Pendapatan dan Biaya Barang yang Dijual. Untuk bisnis yang belum mulai beroperasi, Anda harus memiliki pemahaman tentang cara memperkirakan hal ini untuk produk atau layanan Anda. Di bawah ini beberapa panduan dalam memperkirakan:
B6: Pendapatan: Mulailah dengan menentukan dari target pasar Anda (kelompok calon pelanggan, bisnis atau konsumen) berapa banyak yang akan menjadi target di tahun pertama. Berapa persentase dari hal berikut yang Anda harapkan untuk ditutup? Berapa rata-rata transaksi bagi mereka untuk membeli produk atau layanan Anda? Berapa banyak yang dapat Anda lakukan di bulan pertama, kedua, dan seterusnya? Anda mungkin ingin memulai dengan angka di bulan pertama dan meningkatkannya dengan persentase, misalnya 10%. Sebagai contoh, jika Anda menjual layanan kebersihan ke bisnis kecil di kota Anda dan ada 500 bisnis yang menurut Anda membutuhkan layanan tersebut. Jika kontrak rata-rata adalah $250/bulan, maka Anda perlu memperkirakan berapa banyak bisnis yang dapat Anda tandatangani untuk menjadi kontrak di setiap bulan untuk tahun pertama.
B7: Harga Pokok Penjualan (HPP): Ini harus diperhitungkan untuk produk dan beberapa layanan. Ini adalah biaya yang disertakan untuk menghasilkan produk. Misalnya, jika Anda menjual pakaian, HPP adalah berapa harga yang Anda bayarkan untuk membeli pakaian dari produsen. Jika Anda membuatnya sendiri, biaya tersebut akan berupa biaya bahan dan tenaga untuk membuatnya. Untuk layanan, biaya akan berupa biaya tenaga kerja langsung untuk satu jam kerja yang dapat ditagih. Segala sesuatu di bawah Laba Kotor pada P&L adalah biaya tetap atau overhead untuk keseluruhan bisnis, seperti sewa atau telepon atau bahkan pemasaran.

Sheet Templat Biaya Awal
B1: BIAYA AWAL
B2: Kedai Kopi Anda | C2: =TODAY() -> 2022-01-18
B4: ITEM BIAYA | C4: BULAN | D4: BIAYA/ BULAN | E4: BIAYA SATU KALI | F4: TOTAL BIAYA
B5: Iklan/Pemasaran | F5: =(C5*D5)+IF(E5>0,E5,0) -> Rp0
B6: Gaji Karyawan | F6: =(C6*D6)+IF(E6>0,E6,0) -> Rp0
B7: Pajak dan Tunjangan Gaji Karyawan | F7: Rp0
B8: Sewa/Pembayaran Sewa/Utilitas | F8: Rp0
B9: Ongkos kirim/Pengiriman | F9: Rp0
B10: PERKIRAAN ANGGARAN AWAL | F10: =SUBTOTAL(109,Awal[TOTAL BIAYA]) -> 0

Sheet Contoh Biaya Awal
B1: BIAYA AWAL
B2: ='Templat Biaya Awal'!B2 -> Kedai Kopi Anda | C2: =TODAY() -> 2022-01-18
B4: ITEM BIAYA | C4: BULAN | D4: BIAYA/ BULAN | E4: BIAYA SATU KALI | F4: TOTAL BIAYA
B5: Iklan/Pemasaran | C5: 3 | D5: Rp300 | E5: Rp2,000 | F5: =(C5*D5)+IF(E5>0,E5,0) -> Rp2,900
B6: Gaji Karyawan | C6: 4 | D6: Rp3,500 | E6: Rp2 | F6: =(C6*D6)+IF(E6>0,E6,0) -> Rp14,002
B7: Pajak dan Tunjangan Gaji Karyawan | C7: 4 | D7: Rp500 | E7: Rp2,000 | F7: Rp4,000
B8: Sewa/Pembayaran Sewa/Utilitas | C8: 4 | D8: Rp750 | E8: Rp3,000 | F8: Rp6,000
B9: Ongkos kirim/Pengiriman | C9: 1 | D9: Rp25 | E9: Rp25 | F9: Rp50
B10: PERKIRAAN ANGGARAN AWAL | F10: =SUM(F6:F9) -> Rp24,052

Sheet Templat Laba Rugi
B1: BIAYA AWAL
B2: ='Templat Biaya Awal'!B2 -> Kedai Kopi Anda | C2: =TODAY() -> 2022-01-18
B4: PENDAPATAN | C4: JAN | D4: FEB | E4: MAR | F4: APR | G4: MEI | H4: JUN | I4: JUL | J4: AGU | K4: SEP | L4: OKT | M4: NOV | N4: DES | O4: YTD
B5: Perkiraan Penjualan Produk | C5: Rp0 | D5: Rp0 | E5: Rp0 | F5: Rp0 | G5: Rp0 | H5: Rp0 | I5: Rp0 | J5: Rp0 | K5: Rp0 | L5: Rp0 | M5: Rp0 | N5: Rp0 | O5: =SUM(C5:N5) -> Rp0
B6: Lebih Sedikit Pengembalian Penjualan & Diskon | C6: Rp0 | D6: Rp0 | E6: Rp0 | F6: Rp0 | G6: Rp0 | H6: Rp0 | I6: Rp0 | J6: Rp0 | K6: Rp0 | L6: Rp0 | M6: Rp0 | N6: Rp0 | O6: =SUM(C6:N6) -> Rp0
B7: Pendapatan Layanan | C7: Rp0 | D7: Rp0 | E7: Rp0 | F7: Rp0 | G7: Rp0 | H7: Rp0 | I7: Rp0 | J7: Rp0 | K7: Rp0 | L7: Rp0 | M7: Rp0 | N7: Rp0 | O7: Rp0
B8: Pendapatan lain | C8: Rp0 | D8: Rp0 | E8: Rp0 | F8: Rp0 | G8: Rp0 | H8: Rp0 | I8: Rp0 | J8: Rp0 | K8: Rp0 | L8: Rp0 | M8: Rp0 | N8: Rp0 | O8: Rp0
B9: Penjualan Bersih | C9: =SUBTOTAL(109,PendapatanSampel[JAN]) -> Rp0 | D9: =SUBTOTAL(109,PendapatanSampel[FEB]) -> Rp0 | E9: =SUBTOTAL(109,PendapatanSampel[MAR]) -> Rp0 | F9: =SUBTOTAL(109,PendapatanSampel[APR]) -> Rp0 | G9: =SUBTOTAL(109,PendapatanSampel[MEI]) -> Rp0 | H9: =SUBTOTAL(109,PendapatanSampel[JUN]) -> Rp0 | I9: =SUBTOTAL(109,PendapatanSampel[JUL]) -> Rp0 | J9: =SUBTOTAL(109,PendapatanSampel[AGU]) -> Rp0 | K9: =SUBTOTAL(109,PendapatanSampel[SEP]) -> Rp0 | L9: =SUBTOTAL(109,PendapatanSampel[OKT]) -> Rp0 | M9: =SUBTOTAL(109,PendapatanSampel[NOV]) -> Rp0 | N9: =SUBTOTAL(109,PendapatanSampel[DES]) -> Rp0 | O9: =SUM(PendapatanSampel[[#Totals],[JAN]:[DES]]) -> Rp0
B10: Harga Pokok Penjualan | C10: =C5*0.4 -> Rp0 | D10: Rp0 | E10: Rp0 | F10: Rp0 | G10: Rp0 | H10: Rp0 | I10: Rp0 | J10: Rp0 | K10: Rp0 | L10: Rp0 | M10: Rp0 | N10: Rp0 | O10: Rp0
B11: Laba Kotor | C11: =IFERROR(PendapatanSampel[[#Totals],[JAN]]-C10,"") -> Rp0 | D11: =IFERROR(PendapatanSampel[[#Totals],[FEB]]-D10,"") -> Rp0 | E11: =IFERROR(PendapatanSampel[[#Totals],[MAR]]-E10,"") -> Rp0 | F11: =IFERROR(PendapatanSampel[[#Totals],[APR]]-F10,"") -> Rp0 | G11: =IFERROR(PendapatanSampel[[#Totals],[MEI]]-G10,"") -> Rp0 | H11: =IFERROR(PendapatanSampel[[#Totals],[JUN]]-H10,"") -> Rp0 | I11: =IFERROR(PendapatanSampel[[#Totals],[JUL]]-I10,"") -> Rp0 | J11: =IFERROR(PendapatanSampel[[#Totals],[AGU]]-J10,"") -> Rp0 | K11: =IFERROR(PendapatanSampel[[#Totals],[SEP]]-K10,"") -> Rp0 | L11: =IFERROR(PendapatanSampel[[#Totals],[OKT]]-L10,"") -> Rp0 | M11: =IFERROR(PendapatanSampel[[#Totals],[NOV]]-M10,"") -> Rp0 | N11: =IFERROR(PendapatanSampel[[#Totals],[DES]]-N10,"") -> Rp0 | O11: Rp0
B13: PENGELUARAN | C13: JAN | D13: FEB | E13: MAR | F13: APR | G13: MEI | H13: JUN | I13: JUL | J13: AGU | K13: SEP | L13: OKT | M13: NOV | N13: DES | O13: YTD
B14: Gaji & Upah | C14: Rp0 | D14: Rp0 | E14: Rp0 | F14: Rp0 | G14: Rp0 | H14: Rp0 | I14: Rp0 | J14: Rp0 | K14: Rp0 | L14: Rp0 | M14: Rp0 | N14: Rp0 | O14: =SUM(C14:N14) -> Rp0
B15: Pemasaran/Iklan | C15: Rp0 | D15: Rp0 | E15: Rp0 | F15: Rp0 | G15: Rp0 | H15: Rp0 | I15: Rp0 | J15: Rp0 | K15: Rp0 | L15: Rp0 | M15: Rp0 | N15: Rp0 | O15: =SUM(C15:N15) -> Rp0
B16: Komisi Penjualan | C16: Rp0 | D16: Rp0 | E16: Rp0 | F16: Rp0 | G16: Rp0 | H16: Rp0 | I16: Rp0 | J16: Rp0 | K16: Rp0 | L16: Rp0 | M16: Rp0 | N16: Rp0 | O16: Rp0
B17: Sewa | C17: Rp0 | D17: Rp0 | E17: Rp0 | F17: Rp0 | G17: Rp0 | H17: Rp0 | I17: Rp0 | J17: Rp0 | K17: Rp0 | L17: Rp0 | M17: Rp0 | N17: Rp0 | O17: Rp0
B18: Lain-lain 1 | C18: Rp0 | D18: Rp0 | E18: Rp0 | F18: Rp0 | G18: Rp0 | H18: Rp0 | I18: Rp0 | J18: Rp0 | K18: Rp0 | L18: Rp0 | M18: Rp0 | N18: Rp0 | O18: Rp0
B19: Total Pengeluaran | C19: =IF(SUM(C14:C18)=0,"",SUM(C14:C18)) ->  | O19: =SUM(BiayaSampel[[#Totals],[JAN]:[DES]]) -> Rp0
B20: Pendapatan Sebelum Pajak | C20: =IFERROR('Templat Laba Rugi'!$C$11-BiayaSampel[[#Totals],[JAN]],"") ->  | D20: =IFERROR('Templat Laba Rugi'!$C$11-BiayaSampel[[#Totals],[FEB]],"") ->  | E20: =IFERROR('Templat Laba Rugi'!$C$11-BiayaSampel[[#Totals],[MAR]],"") ->  | F20: =IFERROR('Templat Laba Rugi'!$C$11-BiayaSampel[[#Totals],[APR]],"") ->  | G20: =IFERROR('Templat Laba Rugi'!$C$11-BiayaSampel[[#Totals],[MEI]],"") ->  | H20: =IFERROR('Templat Laba Rugi'!$C$11-BiayaSampel[[#Totals],[JUN]],"") ->  | I20: =IFERROR('Templat Laba Rugi'!$C$11-BiayaSampel[[#Totals],[JUL]],"") ->  | J20: =IFERROR('Templat Laba Rugi'!$C$11-BiayaSampel[[#Totals],[AGU]],"") ->  | K20: =IFERROR('Templat Laba Rugi'!$C$11-BiayaSampel[[#Totals],[SEP]],"") ->  | L20: =IFERROR('Templat Laba Rugi'!$C$11-BiayaSampel[[#Totals],[OKT]],"") ->  | M20: =IFERROR('Templat Laba Rugi'!$C$11-BiayaSampel[[#Totals],[NOV]],"") ->  | N20: =IFERROR('Templat Laba Rugi'!$C$11-BiayaSampel[[#Totals],[DES]],"") ->  | O20: Rp0
B21: Beban Pajak Pendapatan | C21: =IFERROR(C20*0.15," ") ->  | D21: =IFERROR(D20*0.15," ") ->  | E21: =IFERROR(E20*0.15," ") ->  | O21: =SUM('Templat Laba Rugi'!$C$21:$N$21) -> Rp0
B23: PENDAPATAN BERSIH | C23: =IFERROR(C20-'Templat Laba Rugi'!$C$21,"") ->  | D23: =IFERROR(D20-'Templat Laba Rugi'!$D$21,"") ->  | E23: =IFERROR(E20-'Templat Laba Rugi'!$E$21,"") ->  | F23: =IFERROR(F20-'Templat Laba Rugi'!$F$21,"") ->  | G23: =IFERROR(G20-'Templat Laba Rugi'!$G$21,"") ->  | H23: =IFERROR(H20-'Templat Laba Rugi'!$H$21,"") ->  | I23: =IFERROR(I20-'Templat Laba Rugi'!$I$21,"") ->  | J23: =IFERROR(J20-'Templat Laba Rugi'!$J$21,"") ->  | K23: =IFERROR(K20-'Templat Laba Rugi'!$K$21,"") ->  | L23: =IFERROR(L20-'Templat Laba Rugi'!$L$21,"") ->  | M23: =IFERROR(M20-'Templat Laba Rugi'!$M$21,"") ->  | N23: =IFERROR(N20-'Templat Laba Rugi'!$N$21,"") ->  | O23: =IFERROR(O20-'Templat Laba Rugi'!$O$21,"") -> Rp0

Sheet Contoh Laba Rugi
B1: BIAYA AWAL
B2: ='Templat Biaya Awal'!B2 -> Kedai Kopi Anda | C2: =TODAY() -> 2022-01-18
B4: PENDAPATAN | C4: JAN | D4: FEB | E4: MAR | F4: APR | G4: MEI | H4: JUN | I4: JUL | J4: AGU | K4: SEP | L4: OKT | M4: NOV | N4: DES | O4: YTD
B5: Perkiraan Penjualan Produk | C5: Rp5,000 | D5: Rp13,000 | E5: Rp16,000 | F5: Rp7,000 | G5: Rp14,500 | H5: Rp16,400 | I5: Rp22,500 | J5: Rp23,125 | K5: Rp24,549 | L5: Rp22,000 | M5: Rp25,000 | N5: Rp27,349 | O5: =SUM(C5:N5) -> Rp216,423
B6: Lebih Sedikit Pengembalian Penjualan & Diskon | C6: Rp0 | D6: -Rp350 | E6: Rp0 | F6: -Rp206 | G6: -Rp234 | H6: Rp0 | I6: Rp0 | J6: -Rp280 | K6: -Rp1,200 | L6: -Rp1,600 | M6: Rp0 | N6: -Rp2,400 | O6: =SUM(C6:N6) -> -Rp6,270
B7: Pendapatan Layanan | C7: Rp0 | D7: Rp0 | E7: Rp0 | F7: Rp0 | G7: Rp0 | H7: Rp250 | I7: Rp350 | J7: Rp100 | K7: Rp0 | L7: Rp0 | M7: Rp1,245 | N7: Rp1,360 | O7: Rp3,305
B8: Pendapatan lain | C8: Rp0 | D8: Rp0 | E8: Rp0 | F8: Rp0 | G8: Rp0 | H8: Rp0 | I8: Rp0 | J8: Rp1,500 | K8: Rp0 | L8: Rp0 | M8: Rp0 | N8: Rp0 | O8: Rp1,500
B9: Penjualan Bersih | C9: =SUBTOTAL(109,PendapatanSebenarnya[JAN]) -> Rp5,000 | D9: =SUBTOTAL(109,PendapatanSebenarnya[FEB]) -> Rp12,650 | E9: =SUBTOTAL(109,PendapatanSebenarnya[MAR]) -> Rp16,000 | F9: =SUBTOTAL(109,PendapatanSebenarnya[APR]) -> Rp6,794 | G9: =SUBTOTAL(109,PendapatanSebenarnya[MEI]) -> Rp14,266 | H9: =SUBTOTAL(109,PendapatanSebenarnya[JUN]) -> Rp16,650 | I9: =SUBTOTAL(109,PendapatanSebenarnya[JUL]) -> Rp22,850 | J9: =SUBTOTAL(109,PendapatanSebenarnya[AGU]) -> Rp24,445 | K9: =SUBTOTAL(109,PendapatanSebenarnya[SEP]) -> Rp23,349 | L9: =SUBTOTAL(109,PendapatanSebenarnya[OKT]) -> Rp20,400 | M9: =SUBTOTAL(109,PendapatanSebenarnya[NOV]) -> Rp26,245 | N9: =SUBTOTAL(109,PendapatanSebenarnya[DES]) -> Rp26,309 | O9: =SUM(PendapatanSebenarnya[[#Totals],[JAN]:[DES]]) -> Rp214,958
B10: Harga Pokok Penjualan | C10: =C5*0.4 -> Rp2,000 | D10: Rp5,200 | E10: Rp6,400 | F10: Rp2,800 | G10: Rp5,800 | H10: Rp6,560 | I10: Rp9,000 | J10: Rp9,250 | K10: Rp9,820 | L10: Rp8,800 | M10: Rp10,000 | N10: Rp10,940 | O10: Rp86,569
B11: Laba Kotor | C11: =IFERROR(PendapatanSebenarnya[[#Totals],[JAN]]-C10,"") -> Rp3,000 | D11: =IFERROR(PendapatanSebenarnya[[#Totals],[FEB]]-D10,"") -> Rp7,450 | E11: =IFERROR(PendapatanSebenarnya[[#Totals],[MAR]]-E10,"") -> Rp9,600 | F11: =IFERROR(PendapatanSebenarnya[[#Totals],[APR]]-F10,"") -> Rp3,994 | G11: =IFERROR(PendapatanSebenarnya[[#Totals],[MEI]]-G10,"") -> Rp8,466 | H11: =IFERROR(PendapatanSebenarnya[[#Totals],[JUN]]-H10,"") -> Rp10,090 | I11: =IFERROR(PendapatanSebenarnya[[#Totals],[JUL]]-I10,"") -> Rp13,850 | J11: =IFERROR(PendapatanSebenarnya[[#Totals],[AGU]]-J10,"") -> Rp15,195 | K11: =IFERROR(PendapatanSebenarnya[[#Totals],[SEP]]-K10,"") -> Rp13,529 | L11: =IFERROR(PendapatanSebenarnya[[#Totals],[OKT]]-L10,"") -> Rp11,600 | M11: =IFERROR(PendapatanSebenarnya[[#Totals],[NOV]]-M10,"") -> Rp16,245 | N11: =IFERROR(PendapatanSebenarnya[[#Totals],[DES]]-N10,"") -> Rp15,369 | O11: Rp128,389
B13: PENGELUARAN | C13: JAN | D13: FEB | E13: MAR | F13: APR | G13: MEI | H13: JUN | I13: JUL | J13: AGU | K13: SEP | L13: OKT | M13: NOV | N13: DES | O13: YTD
B14: Gaji & Upah | C14: Rp2,500 | D14: Rp2,500 | E14: Rp3,500 | F14: Rp5,000 | G14: Rp5,000 | H14: Rp5,000 | I14: Rp8,000 | J14: Rp9,000 | K14: Rp9,000 | L14: Rp9,000 | M14: Rp9,000 | N14: Rp9,000 | O14: =SUM(C14:N14) -> Rp76,500
B15: Pemasaran/Iklan | C15: Rp400 | D15: Rp450 | E15: Rp450 | F15: Rp450 | G15: Rp900 | H15: Rp900 | I15: Rp900 | J15: Rp900 | K15: Rp900 | L15: Rp900 | M15: Rp1,200 | N15: Rp1,200 | O15: =SUM(C15:N15) -> Rp9,550
B16: Komisi Penjualan | C16: Rp250 | D16: Rp650 | E16: Rp800 | F16: Rp350 | G16: Rp725 | H16: Rp820 | I16: Rp1,125 | J16: Rp1,156 | K16: Rp1,227 | L16: Rp1,100 | M16: Rp1,250 | N16: Rp1,367 | O16: Rp10,821
B17: Sewa | C17: Rp1,250 | D17: Rp1,250 | E17: Rp1,250 | F17: Rp1,250 | G17: Rp1,250 | H17: Rp1,250 | I17: Rp1,250 | J17: Rp1,250 | K17: Rp1,250 | L17: Rp1,250 | M17: Rp1,250 | N17: Rp1,250 | O17: Rp15,000
B18: Total Pengeluaran | C18: =IF(SUM(C14:C17)=0,"",SUM(C14:C17)) -> Rp4,400 | D18: Rp4,850 | E18: Rp6,000 | F18: Rp7,050 | G18: Rp7,875 | H18: Rp7,970 | I18: Rp11,275 | J18: Rp12,306 | K18: Rp12,377 | L18: Rp12,250 | M18: Rp12,700 | N18: Rp12,817 | O18: =SUM(BiayaSebenarnya[[#Totals],[JAN]:[DES]]) -> Rp111,871
B19: Pendapatan Sebelum Pajak | C19: =IFERROR('Contoh Laba Rugi'!$C$11-BiayaSebenarnya[[#Totals],[JAN]],"") -> -Rp1,400 | D19: =IFERROR('Contoh Laba Rugi'!$D$11-BiayaSebenarnya[[#Totals],[FEB]],"") -> Rp2,600 | E19: =IFERROR('Contoh Laba Rugi'!$E$11-BiayaSebenarnya[[#Totals],[MAR]],"") -> Rp3,600 | F19: =IFERROR('Contoh Laba Rugi'!$F$11-BiayaSebenarnya[[#Totals],[APR]],"") -> -Rp3,056 | G19: =IFERROR('Contoh Laba Rugi'!$G$11-BiayaSebenarnya[[#Totals],[MEI]],"") -> Rp591 | H19: =IFERROR('Contoh Laba Rugi'!$H$11-BiayaSebenarnya[[#Totals],[JUN]],"") -> Rp2,120 | I19: =IFERROR('Contoh Laba Rugi'!$I$11-BiayaSebenarnya[[#Totals],[JUL]],"") -> Rp2,575 | J19: =IFERROR('Contoh Laba Rugi'!$J$11-BiayaSebenarnya[[#Totals],[AGU]],"") -> Rp2,889 | K19: =IFERROR('Contoh Laba Rugi'!$K$11-BiayaSebenarnya[[#Totals],[SEP]],"") -> Rp1,152 | L19: =IFERROR('Contoh Laba Rugi'!$L$11-BiayaSebenarnya[[#Totals],[OKT]],"") -> -Rp650 | M19: =IFERROR('Contoh Laba Rugi'!$M$11-BiayaSebenarnya[[#Totals],[NOV]],"") -> Rp3,545 | N19: =IFERROR('Contoh Laba Rugi'!$N$11-BiayaSebenarnya[[#Totals],[DES]],"") -> Rp2,552 | O19: =SUM(C19:N19) -> Rp16,518
B20: Beban Pajak Pendapatan | C20: =C19*0.15 -> -Rp210 | D20: Rp390 | E20: =E19*0.15 -> Rp540 | F20: =F19*0.15 -> -Rp458 | G20: =G19*0.15 -> Rp89 | H20: =H19*0.15 -> Rp318 | I20: =I19*0.15 -> Rp386 | J20: =J19*0.15 -> Rp433 | K20: =K19*0.15 -> Rp173 | L20: =L19*0.15 -> -Rp98 | M20: =M19*0.15 -> Rp532 | N20: =N19*0.15 -> Rp383 | O20: =SUM('Contoh Laba Rugi'!$C$20:$N$20) -> Rp2,478
B22: PENDAPATAN BERSIH | C22: =IFERROR(C19-'Contoh Laba Rugi'!$C$20," ") -> -Rp1,190 | D22: =IFERROR(D19-'Contoh Laba Rugi'!$D$20," ") -> Rp2,210 | E22: =IFERROR(E19-'Contoh Laba Rugi'!$E$20,"") -> Rp3,060 | F22: =IFERROR(F19-'Contoh Laba Rugi'!$F$20,"") -> -Rp2,598 | G22: =IFERROR(G19-'Contoh Laba Rugi'!$G$20,"") -> Rp502 | H22: =IFERROR(H19-'Contoh Laba Rugi'!$H$20,"") -> Rp1,802 | I22: =IFERROR(I19-'Contoh Laba Rugi'!$I$20,"") -> Rp2,189 | J22: =IFERROR(J19-'Contoh Laba Rugi'!$J$20,"") -> Rp2,455 | K22: =IFERROR(K19-'Contoh Laba Rugi'!$K$20,"") -> Rp979 | L22: =IFERROR(L19-'Contoh Laba Rugi'!$L$20,"") -> -Rp553 | M22: =IFERROR(M19-'Contoh Laba Rugi'!$M$20,"") -> Rp3,013 | N22: =IFERROR(N19-'Contoh Laba Rugi'!$N$20,"") -> Rp2,169 | O22: =IFERROR(O19-'Contoh Laba Rugi'!$O$20,"") -> Rp14,040
